{"text_format":"3","workbook":"xlsx","n_sheets":7,"sheets":["Понедельник","Вторник","Среда","Четверг","Пятница","Суббота","Воскресенье"],"not_rendered":{"defined_names":21},"read":"whole","date_system":"1900"}

{"sheet":"Понедельник","index":0,"n_rows":10,"n_cols":13,"rows_kept":10,"merged":[[0,1,0,4],[1,2,1,4],[2,2,2,4]]}
[null,"Расписание смен"]
[null,"На неделю: ","Дата"]
[null,"Название отдела: ","Имя"]
[]
[null,"ПОНЕДЕЛЬНИК","7:00","8:00","9:00","10:00","11:00","12:00","13:00","14:00","15:00","Больничный?","ИТОГО"]
[null,"Имя 1","менеджер","менеджер","менеджер","менеджер","менеджер","менеджер","менеджер","менеджер","менеджер",null,{"$f":"COUNTIF(Понедельник[[#This Row],[7:00]:[15:00]],\"*\")","v":9}]
[null,"Имя 2",null,"кассир","кассир","кассир","кассир",{"$nulls":5},{"$f":"COUNTIF(Понедельник[[#This Row],[7:00]:[15:00]],\"*\")","v":4}]
[null,"Имя 3",null,"приемная","приемная","приемная","приемная ","приемная","приемная","приемная",null,null,{"$f":"COUNTIF(Понедельник[[#This Row],[7:00]:[15:00]],\"*\")","v":7}]
[null,"Имя 4",null,"приемная","приемная","приемная","приемная ","приемная","приемная","приемная",null,null,{"$f":"COUNTIF(Понедельник[[#This Row],[7:00]:[15:00]],\"*\")","v":7}]
[null,"Имя 5",{"$nulls":9},"Больничный",{"$f":"COUNTIF(Понедельник[[#This Row],[7:00]:[15:00]],\"*\")","v":0}]

{"sheet":"Вторник","index":1,"n_rows":10,"n_cols":13,"rows_kept":10,"merged":[[0,1,0,4],[1,2,1,4],[2,2,2,4]]}
[null,"Расписание смен"]
[null,"На неделю: ",{"$f":"Понедельник!C2","v":"Дата"}]
[null,"Название отдела: ",{"$f":"Понедельник!C3","v":"Имя"}]
[]
[null,"ВТОРНИК","7:00","8:00","9:00","10:00","11:00","12:00","13:00","14:00","15:00","Больничный?","ИТОГО"]
[null,"Имя 1","менеджер","менеджер","менеджер","менеджер","менеджер","менеджер","менеджер","менеджер","менеджер",null,{"$f":"COUNTIF(Вторник[[#This Row],[7:00]:[15:00]],\"*\")","v":9}]
[null,"Имя 2",null,"кассир","кассир","кассир","кассир",{"$nulls":5},{"$f":"COUNTIF(Вторник[[#This Row],[7:00]:[15:00]],\"*\")","v":4}]
[null,"Имя 3",null,"приемная","приемная","приемная","приемная ","приемная","приемная","приемная",null,null,{"$f":"COUNTIF(Вторник[[#This Row],[7:00]:[15:00]],\"*\")","v":7}]
[null,"Имя 4",null,"приемная","приемная","приемная","приемная ","приемная","приемная","приемная",null,null,{"$f":"COUNTIF(Вторник[[#This Row],[7:00]:[15:00]],\"*\")","v":7}]
[null,"Имя 5",{"$nulls":9},"Больничный",{"$f":"COUNTIF(Вторник[[#This Row],[7:00]:[15:00]],\"*\")","v":0}]

{"sheet":"Среда","index":2,"n_rows":10,"n_cols":13,"rows_kept":10,"merged":[[0,1,0,4],[1,2,1,4],[2,2,2,4]]}
[null,"Расписание смен"]
[null,"На неделю: ",{"$f":"Понедельник!C2","v":"Дата"}]
[null,"Название отдела: ",{"$f":"Понедельник!C3","v":"Имя"}]
[]
[null,"СРЕДА","7:00","8:00","9:00","10:00","11:00","12:00","13:00","14:00","15:00","Больничный?","ИТОГО"]
[null,"Имя 1","менеджер","менеджер","менеджер","менеджер","менеджер","менеджер","менеджер","менеджер","менеджер",null,{"$f":"COUNTIF(Среда[[#This Row],[7:00]:[15:00]],\"*\")","v":9}]
[null,"Имя 2",null,"кассир","кассир","кассир","кассир",{"$nulls":5},{"$f":"COUNTIF(Среда[[#This Row],[7:00]:[15:00]],\"*\")","v":4}]
[null,"Имя 3",null,"приемная","приемная","приемная","приемная ","приемная","приемная","приемная",null,null,{"$f":"COUNTIF(Среда[[#This Row],[7:00]:[15:00]],\"*\")","v":7}]
[null,"Имя 4",null,"приемная","приемная","приемная","приемная ","приемная","приемная","приемная",null,null,{"$f":"COUNTIF(Среда[[#This Row],[7:00]:[15:00]],\"*\")","v":7}]
[null,"Имя 5",{"$nulls":9},"Больничный",{"$f":"COUNTIF(Среда[[#This Row],[7:00]:[15:00]],\"*\")","v":0}]

{"sheet":"Четверг","index":3,"n_rows":10,"n_cols":13,"rows_kept":10,"merged":[[0,1,0,4],[1,2,1,4],[2,2,2,4]]}
[null,"Расписание смен"]
[null,"На неделю: ",{"$f":"Понедельник!C2","v":"Дата"}]
[null,"Название отдела: ",{"$f":"Понедельник!C3","v":"Имя"}]
[]
[null,"ЧЕТВЕРГ","7:00","8:00","9:00","10:00","11:00","12:00","13:00","14:00","15:00","Больничный?","ИТОГО"]
[null,"Имя 1","менеджер","менеджер","менеджер","менеджер","менеджер","менеджер","менеджер","менеджер","менеджер",null,{"$f":"COUNTIF(Четверг[[#This Row],[7:00]:[15:00]],\"*\")","v":9}]
[null,"Имя 2",null,"кассир","кассир","кассир","кассир",{"$nulls":5},{"$f":"COUNTIF(Четверг[[#This Row],[7:00]:[15:00]],\"*\")","v":4}]
[null,"Имя 3",null,"приемная","приемная","приемная","приемная ","приемная","приемная","приемная",null,null,{"$f":"COUNTIF(Четверг[[#This Row],[7:00]:[15:00]],\"*\")","v":7}]
[null,"Имя 4",null,"приемная","приемная","приемная","приемная ","приемная","приемная","приемная",null,null,{"$f":"COUNTIF(Четверг[[#This Row],[7:00]:[15:00]],\"*\")","v":7}]
[null,"Имя 5",{"$nulls":9},"Больничный",{"$f":"COUNTIF(Четверг[[#This Row],[7:00]:[15:00]],\"*\")","v":0}]

{"sheet":"Пятница","index":4,"n_rows":10,"n_cols":13,"rows_kept":10,"merged":[[0,1,0,4],[1,2,1,4],[2,2,2,4]]}
[null,"Расписание смен"]
[null,"На неделю: ",{"$f":"Понедельник!C2","v":"Дата"}]
[null,"Название отдела: ",{"$f":"Понедельник!C3","v":"Имя"}]
[]
[null,"ПЯТНИЦА","7:00","8:00","9:00","10:00","11:00","12:00","13:00","14:00","15:00","Больничный?","ИТОГО"]
[null,"Имя 1","менеджер","менеджер","менеджер","менеджер","менеджер","менеджер","менеджер","менеджер","менеджер",null,{"$f":"COUNTIF(Пятница[[#This Row],[7:00]:[15:00]],\"*\")","v":9}]
[null,"Имя 2",null,"кассир","кассир","кассир","кассир",{"$nulls":5},{"$f":"COUNTIF(Пятница[[#This Row],[7:00]:[15:00]],\"*\")","v":4}]
[null,"Имя 3",null,"приемная","приемная","приемная","приемная ","приемная","приемная","приемная",null,null,{"$f":"COUNTIF(Пятница[[#This Row],[7:00]:[15:00]],\"*\")","v":7}]
[null,"Имя 4",null,"приемная","приемная","приемная","приемная ","приемная","приемная","приемная",null,null,{"$f":"COUNTIF(Пятница[[#This Row],[7:00]:[15:00]],\"*\")","v":7}]
[null,"Имя 5",{"$nulls":9},"Больничный",{"$f":"COUNTIF(Пятница[[#This Row],[7:00]:[15:00]],\"*\")","v":0}]

{"sheet":"Суббота","index":5,"n_rows":10,"n_cols":13,"rows_kept":10,"merged":[[0,1,0,4],[1,2,1,4],[2,2,2,4]]}
[null,"Расписание смен"]
[null,"На неделю: ",{"$f":"Понедельник!C2","v":"Дата"}]
[null,"Название отдела: ",{"$f":"Понедельник!C3","v":"Имя"}]
[]
[null,"СУББОТА","7:00","8:00","9:00","10:00","11:00","12:00","13:00","14:00","15:00","Больничный?","ИТОГО"]
[null,"Имя 1","менеджер","менеджер","менеджер","менеджер","менеджер","менеджер","менеджер","менеджер","менеджер",null,{"$f":"COUNTIF(Суббота[[#This Row],[7:00]:[15:00]],\"*\")","v":9}]
[null,"Имя 2",null,"кассир","кассир","кассир","кассир",{"$nulls":5},{"$f":"COUNTIF(Суббота[[#This Row],[7:00]:[15:00]],\"*\")","v":4}]
[null,"Имя 3",null,"приемная","приемная","приемная","приемная ","приемная","приемная","приемная",null,null,{"$f":"COUNTIF(Суббота[[#This Row],[7:00]:[15:00]],\"*\")","v":7}]
[null,"Имя 4",null,"приемная","приемная","приемная","приемная ","приемная","приемная","приемная",null,null,{"$f":"COUNTIF(Суббота[[#This Row],[7:00]:[15:00]],\"*\")","v":7}]
[null,"Имя 5",{"$nulls":9},"Больничный",{"$f":"COUNTIF(Суббота[[#This Row],[7:00]:[15:00]],\"*\")","v":0}]

{"sheet":"Воскресенье","index":6,"n_rows":10,"n_cols":13,"rows_kept":10,"merged":[[0,1,0,4],[1,2,1,4],[2,2,2,4]]}
[null,"Расписание смен"]
[null,"На неделю: ",{"$f":"Понедельник!C2","v":"Дата"}]
[null,"Название отдела: ",{"$f":"Понедельник!C3","v":"Имя"}]
[]
[null,"ВОСКРЕСЕНЬЕ","7:00","8:00","9:00","10:00","11:00","12:00","13:00","14:00","15:00","Больничный?","ИТОГО"]
[null,"Имя 1","менеджер","менеджер","менеджер","менеджер","менеджер","менеджер","менеджер","менеджер","менеджер",null,{"$f":"COUNTIF(Воскресенье[[#This Row],[7:00]:[15:00]],\"*\")","v":9}]
[null,"Имя 2",null,"кассир","кассир","кассир","кассир",{"$nulls":5},{"$f":"COUNTIF(Воскресенье[[#This Row],[7:00]:[15:00]],\"*\")","v":4}]
[null,"Имя 3",null,"приемная","приемная","приемная","приемная ","приемная","приемная","приемная",null,null,{"$f":"COUNTIF(Воскресенье[[#This Row],[7:00]:[15:00]],\"*\")","v":7}]
[null,"Имя 4",null,"приемная","приемная","приемная","приемная ","приемная","приемная","приемная",null,null,{"$f":"COUNTIF(Воскресенье[[#This Row],[7:00]:[15:00]],\"*\")","v":7}]
[null,"Имя 5",{"$nulls":9},"Больничный",{"$f":"COUNTIF(Воскресенье[[#This Row],[7:00]:[15:00]],\"*\")","v":0}]